fUST/lending_fUST_20250207
["ID","MTS","AMOUNT","RATE_DAILY","PERIOD"]
[351967846,1738864239368,-500.0,0.00013972,2]
[351967847,1738864239377,-500.0,0.00013972,2]
[351967849,1738864239387,-500.0,0.00013972,2]
[351967851,1738864239396,-915.03,0.00013972,2]
[351967853,1738864239406,-2060.75,0.00013972,2]
[351967855,1738864239415,-738.04,0.00013972,2]
[351967857,1738864239425,-283.02374372,0.00013972,2]
[351967859,1738864239434,-798.43,0.00013972,2]
[351967861,1738864239443,-1875.02,0.00013972,2]
[351967863,1738864239453,-500.0,0.00013972,2]
[351967865,1738864239462,-547.15,0.00013972,2]
[351967867,1738864239472,-400.0,0.00013973,2]
[351967869,1738864239482,-151.0,0.00014,2]
[351967871,1738864239491,-164.363906,0.00014021,2]
[351967873,1738864239501,-420.0,0.0001403,2]
[351967875,1738864239510,-13262.49839917,0.00014075,2]
[351967877,1738864239519,-151.0,0.000141,2]
[351967879,1738864239529,-151.0,0.000141,2]
[351967881,1738864239538,-164.363906,0.000141,4]
[351967883,1738864239548,-500.0,0.00014109,2]
[351967886,1738864239557,-500.0,0.00014109,2]
[351967888,1738864239567,-516.26,0.00014109,2]
[351967890,1738864239576,-435.93,0.00014109,2]
[351967892,1738864239586,-500.0,0.00014109,2]
[351967894,1738864239595,-500.0,0.00014109,2]
[351967896,1738864239605,-500.0,0.00014109,2]
[351967898,1738864239614,-500.0,0.00014109,2]
[351967900,1738864239623,-500.0,0.00014109,2]
[351967902,1738864239633,-793.08,0.00014109,2]
[351967904,1738864239642,-812.18,0.00014109,2]
[351967906,1738864239652,-500.0,0.00014109,2]
[351967908,1738864239662,-626.46,0.00014109,2]
[351967910,1738864239671,-730.97,0.00014109,2]
[351967912,1738864239680,-500.0,0.00014109,2]
[351967914,1738864239690,-500.0,0.00014109,2]
[351967916,1738864239700,-500.0,0.00014109,2]
[351967918,1738864239709,-500.0,0.00014109,2]
[351967922,1738864239719,-768.08,0.00014109,2]
[351967925,1738864239729,-500.0,0.00014109,2]
[351967927,1738864239739,-500.0,0.00014109,2]
[351967929,1738864239748,-637.89,0.00014109,2]
[351967931,1738864239758,-240.24,0.00014109,2]
[351967933,1738864239768,-500.0,0.00014109,2]
[351967935,1738864239778,-500.0,0.00014109,2]
[351967937,1738864239789,-500.0,0.00014109,2]
[351967939,1738864239799,-500.0,0.00014109,2]
[351967940,1738864239809,-715.54,0.00014109,2]
[351967943,1738864239819,-500.0,0.00014109,2]
[351967946,1738864239831,-500.0,0.00014109,2]
[351967948,1738864239840,-500.0,0.00014109,2]
[351967950,1738864239850,-500.0,0.00014109,2]
[351967952,1738864239860,-2368.84,0.00014109,2]
[351967954,1738864239869,-960.76,0.00014109,2]
[351967956,1738864239879,-500.0,0.00014109,2]
[351967958,1738864239888,-863.94,0.00014109,2]
[351967960,1738864239897,-500.0,0.00014109,2]
[351967962,1738864239907,-240.08,0.00014109,2]
[351967964,1738864239917,-500.0,0.00014109,2]
[351967966,1738864239926,-500.0,0.00014109,2]
[351967968,1738864239935,-500.0,0.00014109,2]
[351967970,1738864239945,-907.18,0.00014109,2]
[351967972,1738864239954,-2976.73,0.00014109,2]
[351967974,1738864239964,-3344.81,0.00014109,2]
[351967976,1738864239974,-8344.01,0.00014109,2]
[351967978,1738864239984,-743.67,0.00014109,2]
[351967980,1738864239993,-597.04,0.00014109,2]
[351967982,1738864240005,-500.0,0.00014109,2]
[351967983,1738864240015,-795.77,0.00014109,2]
[351967984,1738864240025,-21728.27,0.00014109,2]
[351967985,1738864240034,-500.0,0.00014109,2]
[351967986,1738864240043,-891.79,0.00014109,2]
[351967987,1738864240053,-592.7,0.00014109,2]
[351967989,1738864240063,-500.0,0.00014109,2]
[351967991,1738864240072,-500.0,0.00014109,2]
[351967993,1738864240085,-2419.9,0.00014109,2]
[351967995,1738864240095,-1400.2,0.00014109,2]
[351967997,1738864240104,-1269.49,0.00014109,2]
[351967999,1738864240114,-500.0,0.00014109,2]
[351968001,1738864240124,-1189.73,0.00014109,2]
[351968003,1738864240133,-949.91,0.00014109,2]
[351968005,1738864240143,-10431.68,0.00014109,2]
[351968007,1738864240152,-741.18,0.00014109,2]
[351968009,1738864240162,-500.0,0.00014109,2]
[351968011,1738864240171,-873.77,0.00014109,2]
[351968013,1738864240181,-500.0,0.00014109,2]
[351968015,1738864240191,-834.87,0.00014109,2]
[351968017,1738864240201,-1195.13,0.00014109,2]
[351968019,1738864240211,-1791.14,0.00014109,2]
[351968021,1738864240221,-500.0,0.00014109,2]
[351968023,1738864240230,-500.0,0.00014109,2]
[351968025,1738864240240,-521.61,0.00014109,2]
[351968027,1738864240250,-595.05,0.00014109,2]
[351968029,1738864240259,-500.0,0.00014109,2]
[351968031,1738864240268,-1976.15,0.00014109,2]
[351968033,1738864240277,-1190.75,0.00014109,2]
[351968035,1738864240287,-171.71,0.00014109,2]
[351968037,1738864240298,-500.0,0.00014109,2]
[351968040,1738864240308,-4765.35,0.00014109,2]
[351968042,1738864240318,-500.0,0.00014109,2]
[351968044,1738864240327,-652.34,0.00014109,2]
[351968046,1738864240337,-500.0,0.00014109,2]
[351968048,1738864240347,-1041.25,0.00014109,2]
[351968050,1738864240356,-500.0,0.00014109,2]
[351968052,1738864240365,-1847.74,0.00014109,2]
[351968054,1738864240376,-500.0,0.00014109,2]
[351968056,1738864240385,-500.0,0.00014109,2]
[351968058,1738864240395,-500.0,0.00014109,2]
[351968060,1738864240404,-500.0,0.00014109,2]
[351968062,1738864240414,-915.03,0.00014109,2]
[351968064,1738864240423,-2060.75,0.00014109,2]
[351968066,1738864240432,-738.04,0.00014109,2]
[351968068,1738864240441,-798.43,0.00014109,2]
[351968070,1738864240451,-1875.02,0.00014109,2]
[351968072,1738864240460,-500.0,0.00014109,2]
[351968074,1738864240469,-229.375,0.00014156,2]
[351968076,1738864240478,-500.0,0.00014176,2]
[351968078,1738864240488,-500.31591144,0.00014176,2]
[351968080,1738864240497,-270.07898776,0.00014176,2]
[351968082,1738864240507,-151.0,0.000142,2]
[351968084,1738864240516,-500.0,0.00014203,2]
[351968086,1738864240525,-500.90956653,0.00014203,2]
[351968088,1738864240534,-500.0,0.00014203,2]
[351968090,1738864240543,-250.50974674,0.00014203,2]
[351968092,1738864240552,-500.0,0.00014203,2]
[351968094,1738864240562,-500.60623011,0.00014203,2]
[351968096,1738864240571,-175.76237682,0.00014203,2]
[351968098,1738864240580,-402.8696701,0.00014203,2]
[351968100,1738864240589,-401.23226652,0.00014203,2]
[351968102,1738864240599,-168.18399834,0.00014203,2]
[351968104,1738864240608,-158.54587718,0.00014203,2]
[351968106,1738864240618,-168.18795762,0.00014203,2]
[351968108,1738864240628,-478.11359212,0.00014203,2]
[351968110,1738864240638,-320.73516343,0.00014203,2]
[351968112,1738864240647,-500.0,0.00014203,2]
[351968114,1738864240656,-160.65164913,0.00014203,2]
[351968116,1738864240665,-180.36425928,0.00014203,2]
[351968117,1738864240675,-500.0,0.00014203,2]
[351968118,1738864240684,-164.363906,0.00014216,2]
[351968119,1738864240694,-500.0,0.00014234,2]
[351968120,1738864240704,-589.93413411,0.00014238,2]
[351968121,1738864240713,-500.0,0.00014238,2]
[351968122,1738864240723,-500.0,0.00014238,2]
[351968123,1738864240733,-1013.52684679,0.00014246,5]
[351968124,1738864240743,-98104.97724739,0.00014246,5]
[351968125,1738864240753,-500.0,0.00014246,2]
[351968126,1738864240763,-500.0,0.00014246,2]
[351968127,1738864240772,-516.26,0.00014246,2]
[351968128,1738864240782,-500.0,0.00014246,2]
[351968129,1738864240791,-500.0,0.00014246,2]
[351968130,1738864240801,-500.0,0.00014246,2]
[351968131,1738864240811,-500.0,0.00014246,2]
[351968132,1738864240820,-500.0,0.00014246,2]
[351968133,1738864240830,-793.08,0.00014246,2]
[351968134,1738864240840,-812.18,0.00014246,2]
[351968135,1738864240850,-500.0,0.00014246,2]
[351968136,1738864240860,-626.46,0.00014246,2]
[351968137,1738864240870,-730.97,0.00014246,2]
[351968138,1738864240888,-500.0,0.00014246,2]
[351968139,1738864240898,-500.0,0.00014246,2]
[351968140,1738864240907,-500.0,0.00014246,2]
[351968141,1738864240917,-500.0,0.00014246,2]
[351968142,1738864240927,-768.08,0.00014246,2]
[351968143,1738864240936,-500.0,0.00014246,2]
[351968144,1738864240946,-500.0,0.00014246,2]
[351968145,1738864240955,-637.89,0.00014246,2]
[351968146,1738864240965,-500.0,0.00014246,2]
[351968148,1738864240974,-500.0,0.00014246,2]
[351968150,1738864240983,-500.0,0.00014246,2]
[351968152,1738864240993,-715.54,0.00014246,2]
[351968154,1738864241005,-500.0,0.00014246,2]
[351968157,1738864241015,-500.0,0.00014246,2]
[351968158,1738864241025,-500.0,0.00014246,2]
[351968160,1738864241035,-500.0,0.00014246,2]
[351968163,1738864241046,-2368.84,0.00014246,2]
[351968164,1738864241056,-960.76,0.00014246,2]
[351968165,1738864241066,-500.0,0.00014246,2]
[351968166,1738864241076,-863.94,0.00014246,2]
[351968167,1738864241087,-500.0,0.00014246,2]
[351968168,1738864241098,-500.0,0.00014246,2]
[351968169,1738864241107,-907.18,0.00014246,2]
[351968170,1738864241117,-2976.73,0.00014246,2]
[351968171,1738864241126,-8344.01,0.00014246,2]
[351968172,1738864241136,-3344.81,0.00014246,2]
[351968173,1738864241145,-743.67,0.00014246,2]
[351968174,1738864241155,-597.04,0.00014246,2]
[351968175,1738864241165,-500.0,0.00014246,2]
[351968176,1738864241175,-795.77,0.00014246,2]
[351968177,1738864241184,-21728.27,0.00014246,2]
[351968178,1738864241194,-500.0,0.00014246,2]
[351968179,1738864241204,-891.79,0.00014246,2]
[351968180,1738864241214,-592.7,0.00014246,2]
[351968181,1738864241223,-500.0,0.00014246,2]
[351968182,1738864241233,-500.0,0.00014246,2]
[351968183,1738864241243,-2419.9,0.00014246,2]
[351968184,1738864241251,-1400.2,0.00014246,2]
[351968185,1738864241261,-1269.49,0.00014246,2]
[351968186,1738864241270,-500.0,0.00014246,2]
[351968187,1738864241280,-1189.73,0.00014246,2]
[351968188,1738864241290,-949.91,0.00014246,2]
[351968189,1738864241299,-10431.68,0.00014246,2]
[351968190,1738864241310,-741.18,0.00014246,2]
[351968191,1738864241319,-500.0,0.00014246,2]
[351968192,1738864241329,-873.77,0.00014246,2]
[351968193,1738864241340,-500.0,0.00014246,2]
[351968194,1738864241349,-834.87,0.00014246,2]
[351968195,1738864241359,-1195.13,0.00014246,2]
[351968196,1738864241369,-1791.14,0.00014246,2]
[351968197,1738864241378,-500.0,0.00014246,2]
[351968198,1738864241387,-500.0,0.00014246,2]
[351968199,1738864241397,-521.61,0.00014246,2]
[351968200,1738864241407,-595.05,0.00014246,2]
[351968201,1738864241416,-500.0,0.00014246,2]
[351968202,1738864241426,-1976.15,0.00014246,2]
[351968203,1738864241435,-1190.75,0.00014246,2]
[351968204,1738864241445,-500.0,0.00014246,2]
[351968205,1738864241454,-4765.35,0.00014246,2]
[351968206,1738864241464,-500.0,0.00014246,2]
[351968207,1738864241474,-652.34,0.00014246,2]
[351968208,1738864241484,-500.0,0.00014246,2]
[351968209,1738864241494,-1041.25,0.00014246,2]
[351968210,1738864241503,-1847.74,0.00014246,2]
[351968211,1738864241513,-500.0,0.00014246,2]
[351968212,1738864241523,-500.0,0.00014246,2]
[351968213,1738864241533,-500.0,0.00014246,2]
[351968214,1738864241543,-915.03,0.00014246,2]
[351968215,1738864241553,-2060.75,0.00014246,2]
[351968216,1738864241562,-738.04,0.00014246,2]
[351968217,1738864241572,-798.43,0.00014246,2]
[351968218,1738864241582,-1875.02,0.00014246,2]
[351968219,1738864241591,-500.0,0.00014246,2]
[351968220,1738864241601,-276.9926375,0.00014247,2]
[351968221,1738864241611,-150.0,0.00014259,2]
[351968222,1738864241621,-537.0,0.00014259,2]
[351968223,1738864241631,-1975.0,0.00014259,2]
[351968224,1738864241641,-2297.0,0.00014259,2]
[351968225,1738864241650,-396.0,0.00014259,2]
[351968226,1738864241660,-2098.46,0.000143,2]
[351968227,1738864241669,-624.0,0.000143,5]
[351968228,1738864241679,-151.0,0.000143,2]
[351968229,1738864241689,-500.0,0.00014383,2]
[351968230,1738864241699,-237.22452895,0.00014383,2]
[351968231,1738864241708,-500.0,0.00014383,2]
[351968232,1738864241718,-516.26,0.00014383,2]
[351968233,1738864241728,-500.0,0.00014383,2]
[351968234,1738864241738,-500.0,0.00014383,2]
[351968235,1738864241748,-500.0,0.00014383,2]
[351968236,1738864241758,-500.0,0.00014383,2]
[351968237,1738864241768,-500.0,0.00014383,2]
[351968238,1738864241778,-793.08,0.00014383,2]
[351968239,1738864241788,-812.18,0.00014383,2]
[351968240,1738864241798,-500.0,0.00014383,2]
[351968241,1738864241808,-626.46,0.00014383,2]
[351968242,1738864241818,-730.97,0.00014383,2]
[351968243,1738864241828,-500.0,0.00014383,2]
[351968244,1738864241838,-500.0,0.00014383,2]
[351968245,1738864241848,-500.0,0.00014383,2]
[351968247,1738864241857,-500.0,0.00014383,2]
[351968249,1738864241867,-768.08,0.00014383,2]
[351968251,1738864241877,-500.0,0.00014383,2]
[351968253,1738864241887,-500.0,0.00014383,2]
[351968255,1738864241896,-500.0,0.00014383,2]
[351968257,1738864241905,-637.89,0.00014383,2]
[351968259,1738864241915,-500.0,0.00014383,2]
[351968261,1738864241925,-494.56854277,0.00014383,2]
[351968263,1738864241934,-500.0,0.00014383,2]
[351968265,1738864241944,-715.54,0.00014383,2]
[351968267,1738864241953,-500.0,0.00014383,2]
[351968269,1738864241963,-344.8,0.00014383,2]
[351968271,1738864241973,-500.0,0.00014383,2]
[351968273,1738864241983,-500.0,0.00014383,2]
[351968275,1738864241993,-2368.84,0.00014383,2]
[351968277,1738864242004,-960.76,0.00014383,2]
[351968279,1738864242015,-500.0,0.00014383,2]
[351968281,1738864242024,-863.94,0.00014383,2]
[351968283,1738864242035,-500.0,0.00014383,2]
[351968285,1738864242045,-907.18,0.00014383,2]
[351968287,1738864242056,-2976.73,0.00014383,2]
[351968289,1738864242067,-4006.10925917,0.00014383,2]
[351968305,1738864242221,-4337.90074083,0.00014383,2]
[351968307,1738864242231,-3344.81,0.00014383,2]
[351968309,1738864242241,-743.67,0.00014383,2]
[351968311,1738864242251,-597.04,0.00014383,2]
[351968313,1738864242260,-500.0,0.00014383,2]
[351968315,1738864242270,-795.77,0.00014383,2]
[351968317,1738864242280,-10555.80925917,0.00014383,2]
[351968383,1738864242831,-500.0,0.00013698,2]
[351968386,1738864242840,-500.0,0.00013698,2]
[351968389,1738864242850,-500.0,0.00013698,2]
[351968392,1738864242859,-248.8516315,0.00013698,2]
[351968396,1738864242871,-251.1483685,0.00013698,2]
[351968399,1738864242880,-500.0,0.00013698,2]
[351968402,1738864242889,-525.5795804,0.00013835,2]
[351968405,1738864242899,-500.0,0.00013835,2]
[351968408,1738864242908,-500.0,0.00013835,2]
[351968411,1738864242917,-547.15,0.00014109,2]
[351968414,1738864242926,-1013.52684679,0.00014245,5]
[351968417,1738864242935,-547.15,0.00014246,2]
[351968420,1738864242945,-11172.46074083,0.00014383,2]
[351968423,1738864242954,-302.23214082,0.00014383,2]
[351968426,1738864242963,-891.79,0.00014383,2]
[351968429,1738864242972,-592.7,0.00014383,2]
[351968432,1738864242982,-500.0,0.00014383,2]
[351968435,1738864242991,-500.0,0.00014383,2]
[351968438,1738864243001,-2419.9,0.00014383,2]
[351968441,1738864243014,-1400.2,0.00014383,2]
[351968444,1738864243024,-1269.49,0.00014383,2]
[351968447,1738864243033,-500.0,0.00014383,2]
[351968450,1738864243042,-1189.73,0.00014383,2]
[351968453,1738864243053,-949.91,0.00014383,2]
[351968456,1738864243063,-10431.68,0.00014383,2]
[351968459,1738864243072,-741.18,0.00014383,2]
[351968461,1738864243082,-500.0,0.00014383,2]
[351968464,1738864243092,-873.77,0.00014383,2]
[351968465,1738864243101,-500.0,0.00014383,2]
[351968467,1738864243110,-500.0,0.00014383,2]
[351968469,1738864243119,-834.87,0.00014383,2]
[351968471,1738864243129,-500.0,0.00014383,2]
[351968473,1738864243138,-150.2,0.00014383,2]
[351968475,1738864243147,-1195.13,0.00014383,2]
[351968477,1738864243157,-150.2,0.00014383,2]
[351968479,1738864243167,-1791.14,0.00014383,2]
[351968481,1738864243176,-150.2,0.00014383,2]
[351968483,1738864243186,-150.2,0.00014383,2]
[351968485,1738864243195,-500.0,0.00014383,2]
[351968487,1738864243204,-500.0,0.00014383,2]
[351968489,1738864243214,-150.2,0.00014383,2]
[351968491,1738864243222,-150.2,0.00014383,2]
[351968493,1738864243231,-189.2,0.00014383,2]
[351968495,1738864243241,-500.0,0.00014383,2]
[351968497,1738864243250,-521.61,0.00014383,2]
[351968499,1738864243260,-595.05,0.00014383,2]
[351968501,1738864243269,-151.0,0.00014383,2]
[351968503,1738864243278,-500.0,0.00014383,2]
[351968505,1738864243288,-1976.15,0.00014383,2]
[351968507,1738864243298,-782.0,0.00014383,2]
[351968509,1738864243307,-1190.75,0.00014383,2]
[351968511,1738864243316,-500.0,0.00014383,2]
[351968513,1738864243326,-150.2,0.00014383,2]
[351968515,1738864243337,-500.0,0.00014383,2]
[351968517,1738864243347,-507.0,0.00014383,2]
[351968519,1738864243356,-150.2,0.00014383,2]
[351968521,1738864243365,-500.0,0.00014383,2]
[351968523,1738864243374,-4765.35,0.00014383,2]
[351968525,1738864243384,-500.0,0.00014383,2]
[351968527,1738864243394,-394.12240189,0.00014383,2]
[351968529,1738864243403,-652.34,0.00014383,2]
[351968531,1738864243413,-500.0,0.00014383,2]
[351968533,1738864243422,-1041.25,0.00014383,2]
[351968536,1738864243431,-1847.74,0.00014383,2]
[351968539,1738864243441,-500.0,0.00014383,2]
[351968541,1738864243453,-151.0,0.00014383,2]
[351968543,1738864243462,-151.0,0.00014383,2]
[351968545,1738864243471,-500.0,0.00014383,2]
[351968547,1738864243482,-500.0,0.00014383,2]
[351968549,1738864243500,-915.03,0.00014383,2]
[351968551,1738864243510,-151.0,0.00014383,2]
[351968553,1738864243520,-2060.75,0.00014383,2]
[351968555,1738864243531,-738.04,0.00014383,2]
[351968557,1738864243540,-192.27388,0.00014383,2]
[351968559,1738864243550,-192.27388,0.00014383,2]
[351968561,1738864243559,-151.0,0.00014383,2]
[351968563,1738864243568,-695.577985,0.00014383,2]
[351968565,1738864243578,-798.43,0.00014383,2]
[351968567,1738864243588,-695.577985,0.00014383,2]
[351968569,1738864243596,-151.0,0.00014383,2]
[351968571,1738864243606,-1875.02,0.00014383,2]
[351968573,1738864243616,-500.0,0.00014383,2]
[351968575,1738864243625,-547.15,0.00014383,2]
[351968577,1738864243636,-234.99547496,0.00014388,2]
[351968580,1738864243655,-3000.0,0.0001439,30]
[351968582,1738864243666,-163.0,0.00014394,2]
[351968584,1738864243675,-163.0,0.00014394,2]
[351968586,1738864243685,-163.0,0.00014394,2]
[351968588,1738864243695,-163.0,0.00014394,2]
[351968590,1738864243705,-163.0,0.00014394,2]
[351968592,1738864243714,-163.0,0.00014394,2]
[351968594,1738864243724,-168.9,0.00014394,2]
[351968596,1738864243734,-3000.0,0.000144,30]
[351968598,1738864243744,-151.0,0.000144,2]
[351968600,1738864243754,-151.0,0.000144,2]
[351968602,1738864243765,-164.363906,0.000144,4]
[351968604,1738864243775,-3000.0,0.0001441,30]
[351968606,1738864243785,-164.363906,0.0001441,2]
[351968608,1738864243794,-3000.0,0.0001442,30]
[351968611,1738864243805,-5430.8094,0.0001443,30]
[351968613,1738864243817,-151.0,0.00014436,2]
[351968615,1738864243829,-253.1735359,0.00014436,2]
[351968616,1738864243841,-157.0,0.00014438,2]
[351968618,1738864243852,-157.0,0.00014438,2]
[351968621,1738864243864,-157.0,0.00014438,2]
[351968622,1738864243873,-157.0,0.00014438,2]
[351968625,1738864243884,-157.0,0.00014438,2]
[351968627,1738864243893,-157.0,0.00014438,2]
[351968629,1738864243903,-157.0,0.00014438,2]
[351968631,1738864243913,-157.0,0.00014438,2]
[351968632,1738864243922,-157.0,0.00014438,2]
[351968635,1738864243932,-157.0,0.00014438,2]
[351968636,1738864243942,-157.0,0.00014438,2]
[351968639,1738864243952,-157.0,0.00014438,2]
[351968641,1738864243963,-157.0,0.00014438,2]
[351968643,1738864243972,-157.0,0.00014438,2]
[351968645,1738864243983,-157.0,0.00014438,2]
[351968647,1738864243993,-157.0,0.00014438,2]
[351968649,1738864244005,-157.0,0.00014438,2]
[351968651,1738864244015,-157.0,0.00014438,2]
[351968653,1738864244025,-168.26,0.00014438,2]
[351968655,1738864244035,-465.01863647,0.00014446,2]
[351968656,1738864244045,-295.0,0.0001447,2]
[351968659,1738864244055,-151.0,0.00014483,2]
[351968660,1738864244064,-151.0,0.00014483,2]
[351968663,1738864244075,-151.0,0.00014483,2]
[351968664,1738864244085,-151.0,0.00014483,2]
[351968666,1738864244094,-151.0,0.00014483,2]
[351968668,1738864244104,-151.0,0.00014483,2]
[351968671,1738864244114,-151.0,0.00014483,2]
[351968672,1738864244124,-151.0,0.00014483,2]
[351968674,1738864244134,-151.0,0.00014483,2]
[351968676,1738864244143,-151.0,0.00014483,2]
[351968678,1738864244153,-151.0,0.00014483,2]
[351968680,1738864244162,-151.0,0.00014483,2]
[351968682,1738864244172,-151.0,0.00014483,2]
[351968684,1738864244182,-156.43,0.00014483,2]
[351968686,1738864244192,-161.0,0.00014483,2]
[351968688,1738864244202,-161.0,0.00014483,2]
[351968690,1738864244212,-161.0,0.00014483,2]
[351968692,1738864244222,-161.0,0.00014483,2]
[351968694,1738864244231,-161.0,0.00014483,2]
[351968696,1738864244241,-161.0,0.00014483,2]
[351968698,1738864244250,-161.0,0.00014483,2]
[351968700,1738864244259,-165.64,0.00014483,2]
[351968702,1738864244269,-206.19177544,0.00014487,2]
[351968704,1738864244278,-500.0,0.0001452,2]
[351968706,1738864244288,-500.0,0.0001452,2]
[351968708,1738864244298,-516.26,0.0001452,2]
[351968710,1738864244307,-151.0,0.0001452,2]
[351968711,1738864244317,-500.0,0.0001452,2]
[351968713,1738864244329,-500.0,0.0001452,2]
[351968715,1738864244339,-792.489057,0.0001452,2]
[351968717,1738864244349,-792.489057,0.0001452,2]
[351968719,1738864244359,-500.0,0.0001452,2]
[351968721,1738864244368,-151.0,0.0001452,2]
[351968723,1738864244379,-500.0,0.0001452,2]
[351968725,1738864244390,-151.0,0.0001452,2]
[351968727,1738864244402,-500.0,0.0001452,2]
[351968729,1738864244412,-793.08,0.0001452,2]
[351968731,1738864244424,-812.18,0.0001452,2]
[351968733,1738864244435,-500.0,0.0001452,2]
[351968735,1738864244446,-221.979836,0.0001452,2]
[351968737,1738864244457,-221.979836,0.0001452,2]
[351968739,1738864244476,-626.46,0.0001452,2]
[351968741,1738864244486,-730.97,0.0001452,2]
[351968743,1738864244501,-500.0,0.0001452,2]
[351968745,1738864244511,-500.0,0.0001452,2]
[351968747,1738864244521,-500.0,0.0001452,2]
[351968749,1738864244531,-500.0,0.0001452,2]
[351968752,1738864244542,-768.08,0.0001452,2]
[351968753,1738864244552,-151.0,0.0001452,2]
[351968756,1738864244562,-500.0,0.0001452,2]
[351968757,1738864244572,-500.0,0.0001452,2]
[351968759,1738864244583,-637.89,0.0001452,2]
[351968762,1738864244594,-500.0,0.0001452,2]
[351968764,1738864244605,-547.854247,0.0001452,2]
[351968765,1738864244615,-547.854247,0.0001452,2]
[351968768,1738864244626,-500.0,0.0001452,2]
[351968769,1738864244635,-715.54,0.0001452,2]
[351968772,1738864244648,-700.0,0.0001452,2]
[351968773,1738864244657,-500.0,0.0001452,2]
[351968775,1738864244668,-500.0,0.0001452,2]
[351968778,1738864244678,-271.565668,0.0001452,2]
[351968780,1738864244689,-151.0,0.0001452,2]
[351968781,1738864244698,-271.565668,0.0001452,2]
[351968782,1738864244708,-151.0,0.0001452,2]
[351968783,1738864244717,-2368.84,0.0001452,2]
[351968784,1738864244727,-151.0,0.0001452,2]
[351968785,1738864244736,-151.0,0.0001452,2]
[351968786,1738864244746,-960.76,0.0001452,2]
[351968787,1738864244756,-863.94,0.0001452,2]
[351968788,1738864244766,-500.0,0.0001452,2]
[351968789,1738864244775,-907.18,0.0001452,2]
[351968790,1738864244785,-2976.73,0.0001452,2]
[351968791,1738864244795,-8344.01,0.0001452,2]
[351968792,1738864244805,-3344.81,0.0001452,2]
[351968793,1738864244814,-151.0,0.0001452,2]
[351968794,1738864244824,-743.67,0.0001452,2]
[351968795,1738864244835,-597.04,0.0001452,2]
[351968796,1738864244844,-589.94467182,0.0001452,2]
[351968797,1738864244853,-795.77,0.0001452,2]
[351968798,1738864244863,-21728.27,0.0001452,2]
[351968799,1738864244872,-151.0,0.0001452,2]
[351968800,1738864244882,-891.79,0.0001452,2]
[351968801,1738864244891,-152.266262,0.0001452,2]
[351968802,1738864244901,-592.7,0.0001452,2]
[351968803,1738864244910,-152.266262,0.0001452,2]
[351968804,1738864244920,-500.0,0.0001452,2]
[351968806,1738864244931,-500.0,0.0001452,2]
[351968808,1738864244942,-173.173,0.0001452,2]
[351968810,1738864244953,-173.173,0.0001452,2]
[351968812,1738864244964,-2419.9,0.0001452,2]
[351968814,1738864244975,-151.0,0.0001452,2]
[351968816,1738864244986,-1400.2,0.0001452,2]